bitfinex/quotes_ETHUSD_20260226
["timestamp","ask_amount","ask_price","bid_price","bid_amount"]
[1772122982865,0.001,2032.7,2032.1,4.14129432]
[1772122982866,0.001,2032.7,2032.3,0.82]
[1772122983756,0.001,2032.7,2032.4,0.6665337]
[1772122984257,0.63476804,2033.6,2032.5,0.6665337]
[1772122984258,1.22955336,2033.3,2032.5,0.6665337]
[1772122984667,1.22955336,2033.3,2032.5,1.4875337]
[1772122984972,0.001,2032.7,2032.6,1.22995178]
[1772122985172,1.22940742,2033.5,2032.6,1.89648548]
[1772122986674,1.22940742,2033.5,2032.7,0.6665337]
[1772122986988,3.47766873,2033.7,2033.0,0.6665337]
[1772122986989,2.02732716,2033.7,2033.0,0.6665337]
[1772122988584,0.798,2033.7,2033.0,0.6665337]
[1772122988883,4.91653644,2034.0,2033.2,0.6665337]
[1772122989087,4.91653644,2034.0,2033.3,0.6665337]
[1772122989780,1.22910521,2034.0,2033.3,0.6665337]
[1772122989954,2.38009258,2034.1,2033.3,0.6665337]
[1772122990158,2.96679039,2034.1,2033.1,0.60676126]
[1772122990350,2.11437863,2033.9,2032.8,1.8365656]
[1772122990573,0.58669781,2033.9,2032.9,0.60676126]
[1772122990885,2.38009258,2034.1,2033.3,1.83628961]
[1772122991179,2.38009258,2034.1,2033.4,0.60676126]
[1772122992262,2.38009258,2034.1,2033.1,0.60676126]
[1772122992467,2.38009258,2034.1,2033.1,1.42676126]
[1772122992468,2.96679039,2034.1,2033.1,1.42676126]
[1772122992952,1.151,2034.1,2033.4,0.60676126]
[1772122993157,0.58669781,2034.4,2033.4,0.60676126]
[1772122993158,1.22891251,2034.4,2033.5,0.60676126]
[1772122993783,0.58669781,2034.3,2033.2,0.60676126]
[1772122993961,0.58669781,2034.3,2033.3,0.60676126]
[1772122995085,0.58669781,2034.1,2033.3,1.83628071]
[1772122995462,0.58669781,2034.1,2033.3,0.60676126]
[1772122995659,1.22898436,2034.2,2033.3,1.83626368]
[1772122995857,1.22898436,2034.2,2033.4,0.60676126]
[1772122996264,1.22895585,2034.3,2033.5,0.60676126]
[1772122996663,0.001,2034.2,2033.5,0.60676126]
[1772122997061,0.001,2034.2,2033.2,0.60676126]
[1772122997062,0.58769781,2034.2,2033.2,0.60676126]
[1772122997272,0.58769781,2034.2,2033.2,1.83634326]
[1772122997588,0.58769781,2034.2,2033.2,0.60676126]
[1772122997770,2.11537863,2034.2,2033.2,0.60676126]
[1772122998087,0.58669781,2034.1,2033.2,0.60676126]
[1772122998312,0.58669781,2033.8,2032.6,0.60676126]
[1772122998461,0.58669781,2033.5,2032.6,0.60676126]
[1772122998668,1.73569781,2033.5,2032.4,0.60676126]
[1772122999087,1.81616569,2033.4,2032.4,1.83682395]
[1772122999511,1.22946788,2033.4,2032.4,1.23006269]
[1772122999666,1.22946788,2033.4,2032.5,0.60676126]
[1772123000166,1.22946788,2033.4,2032.2,2.34778082]
[1772123000167,0.58669781,2033.3,2032.2,2.65702179]
[1772123000369,0.58669781,2033.3,2032.2,1.42686126]
[1772123000806,0.58669781,2033.2,2032.2,1.42686126]
[1772123001111,1.22970978,2033.0,2032.2,2.05028648]
[1772123001295,1.22970978,2033.0,2032.2,0.8201]
[1772123001610,2.37870978,2033.0,2032.2,0.8201]
[1772123001895,2.37870978,2033.0,2032.2,0.0011]
[1772123001896,0.58669781,2032.9,2032.2,0.0011]
[1772123002119,1.149,2033.0,2032.3,0.60676126]
[1772123003199,1.22974308,2033.0,2032.3,0.60676126]
[1772123003709,1.22974308,2033.0,2032.3,1.83689394]
[1772123004125,4.91850488,2033.2,2032.3,1.83689394]
[1772123004295,4.91850488,2033.2,2032.4,0.60676126]
[1772123004618,4.91823474,2033.3,2032.4,0.60676126]
[1772123005120,4.91823474,2033.3,2032.6,0.60676126]
[1772123006611,4.91823474,2033.3,2032.5,1.2300123]
[1772123006826,2.11437863,2033.2,2032.2,0.60786126]
[1772123007128,1.2296493,2033.1,2032.2,1.83804849]
[1772123007919,1.81634711,2033.1,2032.2,0.60786126]
[1772123008352,1.2296493,2033.1,2032.3,0.60676126]
[1772123008485,1.22963521,2033.2,2032.3,0.60676126]
[1772123008686,1.22957192,2033.3,2032.3,0.60676126]
[1772123009311,2.37851219,2033.4,2032.5,0.60676126]
[1772123009618,1.149,2033.4,2032.6,0.60676126]
[1772123009803,2.37847968,2033.4,2032.6,0.60676126]
[1772123010508,2.37847968,2033.4,2032.5,0.8201]
[1772123010718,2.11437863,2033.3,2032.5,0.0011]
[1772123011090,0.58669781,2033.3,2032.5,0.0011]
[1772123011489,1.22958882,2033.2,2032.5,0.0011]
[1772123012842,0.58669781,2033.1,2032.5,0.0011]
[1772123014022,5.50408569,2033.7,2032.5,0.60786126]
[1772123014222,1.15,2033.5,2032.5,0.60786126]
[1772123016342,2.37942057,2033.5,2032.7,0.57837478]
[1772123018027,2.37942057,2033.5,2032.5,4.92090714]
[1772123018028,0.61923239,2033.4,2032.5,0.0011]
[1772123018547,1.84876074,2033.3,2032.5,0.0011]
[1772123018750,0.61923239,2033.2,2032.5,0.0011]
[1772123019546,2.75679779,2033.2,2032.5,0.0011]
[1772123019755,0.57333965,2033.1,2032.5,0.0011]
[1772123019927,1.149,2033.0,2032.5,0.0011]
[1772123020447,1.22977027,2032.9,2032.5,0.0011]
[1772123022265,1.22977027,2032.9,2032.7,0.0011]
[1772123025237,2.37874793,2033.0,2032.7,0.0011]
[1772123025652,1.149,2033.0,2032.7,0.0011]
[1772123025859,2.37871698,2033.0,2032.7,0.0011]
[1772123026565,1.149,2033.0,2032.7,0.0011]
[1772123026730,6.07624055,2033.3,2032.7,0.576061]
[1772123027060,6.07624055,2033.3,2032.7,0.0011]
[1772123027300,1.22945178,2033.5,2032.7,0.576061]
[1772123028389,1.22922607,2033.8,2032.9,0.574961]
[1772123029280,1.22916564,2033.9,2033.1,0.574961]
[1772123029680,2.38711298,2034.0,2033.1,0.574961]
[1772123031335,2.38711298,2034.0,2033.3,0.574961]
[1772123034221,0.57333965,2033.9,2033.0,0.574961]
[1772123036007,2.71090505,2033.7,2033.0,0.574961]
[1772123036208,1.22940742,2033.5,2033.0,0.574961]
[1772123038221,1.22940742,2033.5,2033.0,1.80465861]
[1772123038601,1.22940742,2033.5,2033.0,0.574961]
[1772123039012,1.22940742,2033.5,2033.0,1.80466992]
[1772123039209,2.38735467,2033.6,2033.1,0.574961]
[1772123040120,2.38735467,2033.6,2032.9,0.0011]
[1772123040326,1.22946788,2033.4,2032.9,0.0011]
[1772123040694,1.22946788,2033.4,2032.9,0.576061]
[1772123040896,1.158,2033.6,2032.9,0.576061]
[1772123041128,2.38734859,2033.6,2032.9,0.576061]
[1772123041426,1.158,2033.6,2032.9,0.576061]
[1772123042019,2.38734994,2033.6,2032.9,0.576061]
[1772123042520,2.38735522,2033.6,2033.1,0.574961]
[1772123042824,1.158,2033.6,2033.1,0.574961]
[1772123043130,3.05601327,2033.9,2033.1,0.574961]
[1772123043131,1.161,2033.9,2033.1,0.574961]
[1772123043291,1.73433965,2033.9,2033.1,0.574961]
[1772123043608,2.71090505,2033.8,2032.9,0.0011]
[1772123043818,0.57333965,2033.6,2032.9,0.0011]
[1772123044004,2.48267362,2033.7,2032.9,0.0011]
[1772123044005,0.57333965,2033.4,2032.9,0.0011]
[1772123044401,1.22946788,2033.4,2032.9,0.0011]
[1772123044722,2.39041185,2033.5,2032.9,0.576061]
[1772123045218,2.39041185,2033.5,2032.9,0.0011]
[1772123045718,0.57333965,2033.4,2032.9,0.0011]
[1772123046424,1.22952835,2033.3,2032.9,0.0011]
[1772123047205,0.57333965,2033.2,2032.7,0.0011]
[1772123047510,1.164,2033.1,2032.9,0.0011]
[1772123047708,0.57333965,2033.0,2032.5,0.0011]
[1772123047908,0.57333965,2032.9,2032.5,0.0011]
[1772123048606,1.22983077,2032.8,2032.5,0.0011]
[1772123048929,1.165,2032.7,2032.5,0.0011]
[1772123049104,1.165,2032.7,2032.4,0.0011]
[1772123049430,1.165,2032.7,2032.2,0.0011]
[1772123049729,1.22983077,2032.8,2032.2,0.0011]
[1772123049926,1.22983077,2032.8,2032.2,0.56918824]
[1772123050138,1.22974767,2033.0,2032.2,0.56918824]
[1772123050615,1.22974767,2033.0,2032.4,0.56808824]
[1772123050938,0.57187913,2032.8,2032.2,0.0011]
[1772123051227,2.1375654,2032.9,2032.0,0.0011]
[1772123051228,0.57187913,2032.6,2032.0,0.0011]
[1772123053534,1.2300123,2032.5,2032.0,0.0011]
[1772123054137,1.22998953,2032.6,2032.0,0.56918824]
[1772123054507,1.22998953,2032.6,2032.0,0.0011]
[1772123054508,3.93943406,2032.6,2032.0,0.0011]
[1772123054748,0.57187913,2032.5,2032.0,0.0011]
[1772123055444,1.22998953,2032.6,2031.4,0.0011]
[1772123055445,0.57187913,2032.3,2031.4,0.0011]
[1772123055645,0.57187913,2032.0,2031.4,0.0011]
[1772123057433,2.39719387,2032.2,2031.2,0.0011]
[1772123057434,0.57187913,2031.7,2031.2,0.0011]
[1772123057641,1.23061777,2031.5,2031.2,0.0011]
[1772123059113,1.169,2032.1,2031.2,0.56918824]
[1772123059534,2.39928775,2032.1,2031.3,1.23073893]
[1772123059709,1.169,2032.1,2031.4,0.56808824]
[1772123060129,1.169,2032.4,2031.4,0.56808824]
[1772123061041,1.169,2032.4,2031.7,0.56808824]
[1772123061239,1.169,2032.4,2031.6,0.0011]
[1772123061655,1.23013334,2032.3,2031.6,0.0011]
[1772123061811,1.169,2032.4,2031.6,0.56918824]
[1772123062006,0.08192,2033.2,2031.9,2.1375654]
[1772123062007,1.22970978,2033.0,2031.9,2.1375654]
[1772123062206,2.39769671,2033.1,2032.0,0.56808824]
[1772123062921,1.22969671,2033.1,2032.0,0.56808824]
[1772123063214,1.22969671,2033.1,2031.6,2.1386654]
[1772123063215,4.91828986,2033.3,2032.2,0.56808824]
[1772123063419,1.23050338,2033.4,2032.2,0.56808824]
[1772123063735,1.23050338,2033.4,2032.4,0.56808824]
[1772123063938,0.001,2033.4,2032.4,0.56808824]
[1772123065641,0.001,2033.4,2032.8,0.56808824]
[1772123067019,0.001,2033.4,2032.5,7.86860021]
[1772123067020,3.87844453,2033.4,2032.5,1.79808406]
[1772123067742,1.22952835,2033.3,2032.6,0.56808824]
[1772123067936,1.169,2033.4,2032.6,0.56808824]
[1772123068144,2.3984919,2033.4,2032.6,0.56808824]
[1772123069940,2.3984919,2033.4,2032.6,1.79800549]
[1772123070243,2.1375654,2033.2,2032.3,0.56808824]
[1772123070430,0.57187913,2033.3,2032.3,1.79821928]
[1772123070838,0.57187913,2033.3,2032.4,0.56808824]
[1772123072175,1.22958882,2033.2,2032.4,0.56808824]
[1772123072839,0.54112065,2033.1,2032.1,0.56087499]
[1772123073248,1.23058882,2033.2,2032.2,0.56087499]
[1772123073435,2.39758882,2033.2,2032.2,0.56087499]
[1772123073635,1.168,2033.2,2032.3,0.56087499]
[1772123074549,1.2296493,2033.1,2032.5,0.56087499]
[1772123074851,0.001,2033.2,2032.5,0.56087499]
[1772123075224,0.001,2033.2,2032.6,0.56087499]
[1772123076152,0.001,2033.4,2032.7,0.56087499]
[1772123076340,0.001,2033.4,2032.9,0.56087499]
[1772123076545,0.001,2033.4,2033.0,1.79058477]
[1772123076849,0.001,2033.4,2033.1,0.56087499]
[1772123078759,0.001,2033.4,2033.1,1.7905214]
[1772123079329,0.001,2033.4,2033.1,0.56087499]
[1772123079528,0.001,2033.4,2033.1,1.79052195]
[1772123080722,0.001,2033.4,2033.1,0.56087499]
[1772123080928,0.001,2033.4,2032.9,2.04473022]
[1772123081962,0.001,2033.4,2033.0,0.54423554]
[1772123082682,1.5259556,2034.1,2033.2,0.54423554]
[1772123082683,0.58693279,2034.1,2033.2,0.54423554]
[1772123082861,2.39302695,2034.2,2033.4,0.54423554]
[1772123083073,1.22902695,2034.2,2033.4,0.54423554]
[1772123083377,1.22889618,2034.4,2033.6,0.54423554]
[1772123083613,4.91506187,2034.6,2033.8,0.54423554]
[1772123084023,4.914113,2035.0,2034.2,0.54423554]
[1772123084024,1.2285616,2034.9,2034.2,0.54423554]
[1772123084172,3.26660152,2035.3,2034.4,2.07019114]
[1772123084173,4.4949527,2035.3,2034.4,2.07019114]
[1772123084372,4.4949527,2035.3,2034.4,0.54423554]
[1772123084580,4.4949527,2035.3,2034.5,0.54423554]
[1772123084784,4.93678919,2035.4,2034.7,0.54423554]
[1772123084785,1.25177426,2035.4,2034.7,0.54423554]
[1772123085005,1.25177426,2035.4,2034.7,1.36023554]
[1772123085226,0.0235086,2035.4,2034.8,0.54423554]
[1772123085433,1.25178112,2035.4,2034.8,0.54423554]
[1772123085576,0.58693279,2035.3,2034.4,1.36023554]
[1772123085776,0.58693279,2035.2,2034.1,1.36023554]
[1772123085991,1.163,2035.1,2034.1,1.36023554]
[1772123086312,1.163,2035.1,2034.2,0.54423554]
[1772123086601,1.74993279,2035.1,2034.1,0.816]
[1772123086777,1.22850122,2035.0,2034.1,0.816]
[1772123087113,1.22850122,2035.0,2034.1,2.04503414]
[1772123087282,3.34138961,2035.0,2034.1,0.816]
[1772123087609,3.34138961,2035.0,2033.9,0.54423554]
[1772123087610,0.58693279,2034.9,2033.9,0.54423554]
[1772123088102,0.58693279,2034.9,2033.9,1.77339758]
[1772123088610,1.5259556,2034.6,2033.6,0.54423554]
[1772123088825,1.22880314,2034.5,2033.7,0.54423554]
[1772123089177,4.91518454,2034.7,2033.8,0.54423554]
[1772123089178,4.91485263,2034.7,2033.8,0.54423554]
[1772123090282,5.50178542,2034.7,2033.8,0.54423554]
[1772123090613,5.50178542,2034.7,2033.7,0.815]
[1772123090932,5.50178542,2034.7,2033.7,2.04428003]
[1772123091220,4.91485263,2034.7,2033.8,0.54423554]
[1772123092216,4.91485263,2034.7,2033.7,0.815]
[1772123092217,0.58693279,2034.6,2033.7,0.815]
[1772123092518,1.74893279,2034.6,2033.7,0.815]
[1772123092886,1.22880314,2034.5,2033.7,0.815]
[1772123093116,1.22880314,2034.5,2033.4,0.54423554]
[1772123093117,2.11288839,2034.4,2033.4,0.54423554]
[1772123093298,0.58693279,2034.3,2033.4,0.54423554]
[1772123093716,0.58693279,2034.3,2033.4,1.77370288]
[1772123093891,0.58693279,2034.3,2033.4,0.54423554]
[1772123094092,1.22880314,2034.5,2033.5,0.54423554]
[1772123095040,1.22880314,2034.5,2033.6,1.77358251]
[1772123095241,1.22878244,2034.6,2033.7,0.54423554]
[1772123095404,1.22878244,2034.6,2033.9,0.54423554]
[1772123095604,1.22872676,2034.7,2033.9,0.54423554]
[1772123096011,1.22865914,2034.8,2033.9,0.54423554]
[1772123096243,1.22865914,2034.8,2034.1,0.54423554]
[1772123096723,1.22865914,2034.8,2034.2,2.3399556]
[1772123096724,0.001,2034.8,2034.2,2.3399556]
[1772123096903,4.91330825,2035.3,2034.5,0.54423554]
[1772123096904,1.22832014,2035.3,2034.5,0.54423554]
[1772123097308,1.22832014,2035.3,2034.5,1.77303589]
[1772123098147,1.22832014,2035.3,2034.2,0.54423554]
[1772123098148,0.58693279,2035.1,2034.2,0.54423554]
[1772123098327,1.5259556,2034.9,2033.9,1.35823554]
[1772123098527,1.161,2034.8,2033.9,0.54423554]
[1772123098923,1.74793279,2034.8,2033.9,0.54423554]
[1772123099123,1.22868236,2034.7,2033.9,0.54423554]
[1772123099508,1.22868236,2034.7,2033.8,0.813]
[1772123099712,1.5259556,2034.6,2033.7,0.0011]
[1772123099909,1.22868236,2034.7,2033.7,1.23038635]
[1772123100109,0.58693279,2034.6,2033.7,0.0011]
[1772123100339,1.22868236,2034.7,2033.8,0.54423554]
[1772123100542,1.161,2034.8,2033.8,0.54423554]
[1772123100751,4.91376345,2035.2,2034.1,1.5259556]
[1772123100914,4.91376345,2035.2,2033.9,0.813]
[1772123100915,4.91340646,2035.3,2034.4,0.54423554]
[1772123101228,4.91340646,2035.3,2034.3,0.54423554]
[1772123101556,4.91340646,2035.3,2034.4,0.54423554]
[1772123101557,1.22832014,2035.3,2034.4,0.54423554]
[1772123101713,0.0235086,2035.4,2034.6,0.54423554]
[1772123101714,1.25180627,2035.4,2034.6,0.54423554]
[1772123103440,1.83873906,2035.4,2034.3,1.35623554]
[1772123103640,1.25180627,2035.4,2034.4,0.54423554]
[1772123104139,0.58693279,2035.3,2033.8,1.77346161]
[1772123104470,2.11288839,2035.3,2034.0,2.07019114]
[1772123104674,1.25180627,2035.4,2034.6,0.54423554]
[1772123104978,0.0235086,2035.4,2034.6,0.54423554]
[1772123105142,0.0235086,2035.4,2034.8,0.54423554]
[1772123105343,5.9038255,2037.3,2034.7,1.22868236]
[1772123105344,1.2278824,2036.1,2035.2,0.54423554]
[1772123105651,4.91046546,2036.5,2035.4,0.54423554]
[1772123105868,1.5259556,2036.2,2034.8,0.54423554]
[1772123106074,2.11288839,2036.2,2035.0,0.54423554]
[1772123106644,2.11288839,2035.9,2034.7,1.7729179]
[1772123106838,0.58693279,2035.8,2034.7,0.54423554]
[1772123107091,2.11288839,2035.6,2034.5,2.03979864]
[1772123107398,2.11288839,2035.6,2034.5,0.811]
[1772123107399,1.22819945,2035.5,2034.5,0.811]
[1772123107685,1.22819945,2035.5,2034.4,1.77309421]
[1772123107881,1.22819945,2035.5,2034.6,0.54423554]
[1772123108544,1.81513224,2035.5,2034.8,0.0011]
[1772123108751,1.5259556,2035.3,2034.8,0.0011]
[1772123109072,0.58693279,2035.4,2034.5,0.0011]
[1772123109258,1.22832014,2035.3,2034.5,0.0011]
[1772123111059,1.5259556,2034.9,2034.0,0.53932485]
[1772123111294,1.75064762,2034.8,2033.7,0.54042485]
[1772123111591,1.22862197,2034.8,2034.0,0.53932485]
[1772123113187,0.52202565,2034.7,2033.7,0.0011]
[1772123113374,1.5259556,2034.2,2033.7,0.0011]
[1772123113693,3.27684479,2034.4,2033.7,0.0011]
[1772123113882,0.52202565,2034.3,2033.7,0.0011]
[1772123114278,5.43651356,2034.9,2033.9,0.53932485]
[1772123114476,4.91448791,2034.9,2033.9,0.53932485]
[1772123114680,4.9140386,2035.0,2034.2,0.53932485]
[1772123114987,1.22850122,2035.0,2034.2,0.53932485]
[1772123115386,1.22850122,2035.0,2034.3,1.7682488]
[1772123115687,1.22850122,2035.0,2034.3,0.53932485]
[1772123116067,1.22850122,2035.0,2034.0,0.53932485]
[1772123116268,2.75445682,2035.0,2034.0,0.53932485]
[1772123116789,3.27648247,2035.0,2034.0,0.53932485]
[1772123116990,1.75052687,2035.0,2034.0,0.53932485]
[1772123117779,1.75052687,2035.0,2034.1,1.22904478]
[1772123117981,1.22850122,2035.0,2034.2,0.53932485]
[1772123118175,1.22850122,2035.0,2033.9,2.75507329]
[1772123118380,1.22850122,2035.0,2033.9,3.29439814]
[1772123119208,1.22850122,2035.0,2033.9,1.76844254]
[1772123119386,0.52202565,2034.8,2033.8,0.53932485]
[1772123119590,1.22850122,2035.0,2033.8,0.53932485]
[1772123119992,1.22850122,2035.0,2034.0,0.53932485]
[1772123121216,1.22850122,2035.0,2034.2,0.0011]
[1772123121622,0.52202565,2034.9,2034.2,0.0011]
[1772123121914,1.22850122,2035.0,2034.2,0.54042485]
[1772123122111,6.96298616,2035.2,2034.2,0.54042485]
[1772123122320,0.52202565,2035.1,2034.2,0.54042485]
[1772123122818,2.04798125,2034.9,2034.2,0.0011]
[1772123123187,3.20698125,2034.9,2034.2,0.0011]
[1772123123514,0.52202565,2034.8,2034.2,0.0011]
[1772123124705,1.22868236,2034.7,2034.2,0.0011]
[1772123125121,1.22868236,2034.7,2034.0,0.0011]
[1772123125347,2.04798125,2034.6,2034.0,0.0011]
[1772123125515,1.75070801,2034.7,2033.7,0.0011]
[1772123125827,1.75070801,2034.7,2033.7,0.54042485]
[1772123126032,1.5259556,2034.3,2033.7,0.0011]
[1772123126232,1.16,2034.3,2033.7,0.0011]
[1772123126640,1.22898436,2034.2,2033.7,0.0011]
[1772123127220,1.22898436,2034.2,2033.5,0.0011]
[1772123127618,1.5259556,2033.9,2033.5,0.0011]
[1772123128022,0.52202565,2034.1,2033.5,0.0011]
[1772123128373,2.75493996,2034.2,2033.5,0.0011]
[1772123128374,1.22898436,2034.2,2033.5,0.0011]
[1772123128646,4.91500196,2034.6,2033.7,0.53932485]
[1772123128939,0.52202565,2034.5,2033.5,0.0011]
[1772123129243,1.5259556,2034.4,2033.5,0.0011]
[1772123129441,1.5259556,2034.1,2033.5,0.0011]
[1772123129741,3.20898125,2034.1,2033.5,0.0011]
[1772123130122,3.20898125,2034.1,2033.2,0.0011]
[1772123130618,1.22910521,2034.0,2033.2,0.0011]
[1772123131744,1.5259556,2033.8,2033.2,0.0011]
[1772123131916,1.5259556,2033.5,2032.8,0.53932485]
[1772123132326,1.5259556,2033.5,2032.5,0.53932485]
[1772123132844,1.22946788,2033.4,2032.5,0.53932485]
[1772123133063,1.22946788,2033.4,2032.6,0.53932485]
[1772123134039,1.22922607,2033.8,2032.8,0.53932485]
[1772123134949,1.22922607,2033.8,2032.9,0.53928416]
[1772123136627,6.07765647,2034.4,2033.1,0.53928416]
[1772123136820,6.07765647,2034.4,2033.4,0.53928416]
[1772123137639,6.5874575,2034.4,2033.4,0.53928416]
[1772123137822,0.50980103,2034.2,2033.1,0.53928416]
[1772123138851,1.22904478,2034.1,2033.1,1.76887575]
[1772123139035,1.22904478,2034.1,2033.2,0.53928416]
[1772123139946,2.65568153,2034.0,2032.9,2.53876476]
[1772123140147,1.163,2033.9,2032.9,2.53876476]
[1772123140465,0.51950628,2033.8,2032.7,0.0011]
[1772123140675,0.51950628,2033.6,2032.7,0.0011]
[1772123140895,1.7489137,2033.5,2032.7,0.0011]
[1772123141183,1.68250628,2033.4,2032.7,0.0011]
[1772123142258,0.51950628,2033.3,2032.7,0.0011]
[1772123143351,1.7490951,2033.2,2032.7,0.0011]
[1772123143533,1.7490951,2033.2,2032.5,0.0011]
[1772123144140,1.7490951,2033.2,2032.5,0.50409708]
[1772123144141,1.22958882,2033.2,2032.5,0.50409708]
[1772123145468,4.9183553,2033.3,2032.5,0.50409708]
[1772123145645,4.9183553,2033.3,2032.5,1.73410009]
[1772123145844,4.9183553,2033.3,2032.5,0.50409708]
[1772123146638,4.9183553,2033.3,2032.5,1.73409953]
[1772123147241,4.9183553,2033.3,2032.5,1.73410092]
[1772123147444,4.9183553,2033.3,2032.7,0.0011]
[1772123147855,4.9193553,2033.3,2032.7,0.0011]
[1772123148575,0.001,2033.3,2032.7,0.50409708]
[1772123149772,4.91725512,2033.7,2032.9,0.50299708]
[1772123149982,1.22939212,2033.6,2032.9,0.50299708]
[1772123151171,1.22898436,2034.2,2033.0,0.50299708]
[1772123151369,1.22898436,2034.2,2033.2,0.50299708]
[1772123151946,4.91573752,2034.3,2033.3,0.50299708]
[1772123153373,1.22874275,2034.6,2033.5,0.50299708]
[1772123153566,1.74824903,2034.6,2033.5,0.50299708]
[1772123153974,1.74824903,2034.6,2033.6,1.73234405]
[1772123154286,1.22874275,2034.6,2033.8,0.50299708]
[1772123154589,2.91122182,2034.7,2033.8,0.50299708]
[1772123155318,2.39171554,2034.7,2033.8,0.50299708]
[1772123156392,2.39171554,2034.7,2034.0,0.50299708]
[1772123157256,1.163,2034.7,2034.0,0.50299708]
[1772123157456,0.001,2035.2,2034.3,0.50299708]
[1772123157685,1.2293865,2035.2,2034.6,0.50299708]
[1772123157886,1.22817803,2035.6,2034.7,0.50299708]
[1772123158087,4.91212792,2035.8,2034.8,0.50299708]
[1772123158290,4.91212792,2035.8,2035.0,0.50299708]
[1772123158507,1.22801846,2035.8,2035.0,0.50299708]
[1772123158703,1.22800461,2035.9,2035.0,0.50299708]
[1772123158998,1.22777723,2036.2,2035.0,0.50299708]
[1772123159211,1.22759636,2036.5,2035.2,0.50299708]
[1772123159495,1.22759636,2036.5,2035.5,0.50299708]
[1772123160292,1.22759636,2036.5,2035.3,0.803]
[1772123160293,1.22756458,2036.6,2035.9,1.22795815]
[1772123160503,1.22756458,2036.6,2036.0,0.50299708]
[1772123160801,1.22744513,2036.8,2036.0,0.50299708]
[1772123161479,4.90769374,2037.7,2036.4,0.50299708]
[1772123161480,1.22705408,2037.4,2036.4,0.50299708]
[1772123161892,1.22705408,2037.4,2036.6,0.50299708]
[1772123162397,1.22675303,2037.9,2036.7,0.50299708]
[1772123162912,4.52582625,2038.1,2037.0,0.50299708]
[1772123163087,2.90915728,2038.1,2037.0,0.50299708]
[1772123164132,1.226651,2038.1,2037.1,0.50299708]
[1772123164287,1.22651228,2038.3,2037.1,0.50299708]
[1772123164807,1.22651228,2038.3,2037.2,0.50299708]
[1772123165595,0.32232254,2038.7,2037.7,0.50299708]
[1772123165824,1.47124177,2039.2,2037.7,0.50299708]
[1772123165825,0.51950628,2039.3,2037.8,0.50299708]
[1772123165984,4.90396044,2039.2,2038.0,0.50299708]
[1772123166381,5.42346672,2039.2,2038.0,0.50299708]
[1772123166583,0.51950628,2038.7,2037.2,0.50299708]
[1772123166788,1.68450628,2038.6,2037.2,0.50299708]
[1772123167020,2.65568153,2038.5,2037.2,0.50299708]
[1772123167216,0.51950628,2038.4,2037.2,0.50299708]
[1772123167787,2.13617525,2038.2,2036.6,0.50299708]
[1772123168105,0.51950628,2038.0,2036.7,0.796]
[1772123168418,0.51950628,2037.8,2036.7,0.796]
[1772123168595,1.22675303,2037.9,2036.2,2.80241345]
[1772123168596,2.65568153,2037.6,2036.2,4.02449053]
[1772123168791,3.81868153,2037.6,2036.3,0.50299708]
[1772123168989,3.81868153,2037.6,2036.7,2.13617525]
[1772123168990,1.163,2037.6,2036.7,2.13617525]
[1772123169192,1.163,2037.6,2036.5,0.50299708]
[1772123169412,1.163,2037.6,2036.4,2.13617525]
[1772123169413,1.22675303,2037.9,2037.1,0.49246209]
[1772123169718,1.22675303,2037.9,2037.1,0.801]
[1772123170124,0.51387674,2037.8,2036.5,0.49246209]
[1772123170302,1.22687343,2037.7,2036.5,1.72005686]
[1772123170511,1.74075017,2037.7,2036.5,1.72005686]
[1772123170743,0.51387674,2037.6,2036.5,0.49246209]
[1772123170896,1.22673101,2038.0,2037.0,0.49246209]
[1772123171098,1.22673101,2038.0,2037.1,0.801]
[1772123172324,0.001,2037.7,2037.1,0.801]
[1772123172729,0.001,2037.7,2036.7,2.51993529]
[1772123173209,0.001,2037.7,2036.7,1.29246209]
[1772123173406,0.51487674,2037.7,2036.7,0.8]
[1772123174326,0.51387674,2037.4,2036.3,0.49246209]
[1772123174525,1.74099105,2037.3,2036.2,3.94823268]
[1772123174825,1.74099105,2037.3,2036.2,2.72049345]
[1772123175240,0.51387674,2036.9,2036.1,0.796]
[1772123175422,0.51387674,2036.9,2035.7,1.72052206]
[1772123175620,0.51387674,2036.9,2035.6,2.02811519]
[1772123175804,0.51387674,2036.9,2035.6,0.8]
[1772123176535,0.51387674,2036.6,2035.4,1.72181845]
[1772123176719,0.51387674,2036.6,2035.4,0.0011]
[1772123177854,0.51387674,2036.6,2035.4,1.22934961]
[1772123178354,0.51387674,2036.6,2035.5,0.49246209]
[1772123178654,1.22759636,2036.5,2035.5,1.72061454]
[1772123179035,1.22759636,2036.5,2035.5,0.49246209]
[1772123179233,1.22759636,2036.5,2035.5,1.72065872]
[1772123179547,1.22741555,2036.8,2035.6,13.181623]
[1772123179728,1.74129229,2036.8,2035.7,0.49246209]
[1772123179927,0.51387674,2036.7,2035.5,1.22819663]
[1772123180154,1.22741555,2036.8,2035.6,0.49246209]
[1772123180357,0.51387674,2037.1,2035.8,0.49246209]
[1772123180542,1.22711431,2037.3,2036.0,0.49246209]
[1772123180746,6.06932549,2037.4,2036.3,0.49246209]
[1772123180747,1.22710705,2037.4,2036.3,0.49246209]
[1772123181057,1.74098379,2037.4,2036.3,0.49246209]
[1772123182123,0.51387674,2037.3,2036.2,2.65064224]
[1772123182356,0.51387674,2037.1,2036.0,1.7203138]
[1772123182957,1.22717571,2037.2,2036.3,0.49246209]
[1772123183258,1.22717571,2037.2,2036.4,0.8]
[1772123184959,0.51387674,2037.3,2036.4,2.02764738]
[1772123185468,0.51387674,2037.3,2036.1,2.02779388]
[1772123186040,4.90822837,2037.4,2036.3,0.49246209]
[1772123186660,0.51387674,2037.3,2036.2,2.65064224]
[1772123186859,1.22717455,2037.2,2036.2,2.65064224]
[1772123187059,1.22717455,2037.2,2036.0,0.49246209]
[1772123187060,0.51387674,2037.1,2036.0,0.49246209]
[1772123187335,0.51387674,2037.1,2036.0,1.72035377]
[1772123188267,0.51387674,2037.1,2036.0,0.49246209]
[1772123188472,0.51387674,2037.1,2036.0,1.72035281]
[1772123188771,0.51387674,2037.1,2035.9,5.02791631]
[1772123189174,1.22727414,2037.1,2036.0,0.49246209]
[1772123189344,1.22727414,2037.1,2036.2,0.49246209]
[1772123189674,1.22699386,2037.5,2036.4,0.49246209]
[1772123189839,1.7408706,2037.5,2036.4,0.49246209]
[1772123190243,1.22699386,2037.5,2036.4,0.49246209]
[1772123190443,1.7408706,2037.5,2036.3,1.29546209]
[1772123190655,1.22789593,2037.7,2036.4,0.49246209]
[1772123190857,1.22788939,2037.7,2036.8,0.49246209]
[1772123191169,0.001,2037.7,2037.0,1.22729504]
[1772123191580,0.001,2037.7,2037.0,1.71975713]